fUSD/lending_fUSD_20250219
["ID","MTS","AMOUNT","RATE_DAILY","PERIOD"]
[353714523,1739995870899,-538.45,0.0001223,2]
[353714524,1739995870909,-509.59,0.0001223,2]
[353714525,1739995870919,-500.0,0.0001223,2]
[353714526,1739995870929,-546.67,0.0001223,2]
[353714527,1739995870939,-840.65,0.0001223,2]
[353714528,1739995870954,-500.0,0.0001223,2]
[353714529,1739995870964,-1437.42,0.0001223,2]
[353714530,1739995870974,-1356.54,0.0001223,2]
[353714531,1739995870984,-500.0,0.0001223,2]
[353714532,1739995870994,-785.45,0.0001223,2]
[353714533,1739995871004,-1209.73,0.0001223,2]
[353714534,1739995871015,-690.95,0.0001223,2]
[353714535,1739995871024,-1489.16,0.0001223,2]
[353714536,1739995871034,-807.67,0.0001223,2]
[353714537,1739995871043,-1423.58,0.0001223,2]
[353714538,1739995871053,-843.14,0.0001223,2]
[353714539,1739995871062,-677.57,0.0001223,2]
[353714540,1739995871073,-945.16,0.0001223,2]
[353714541,1739995871084,-3452.77,0.0001223,2]
[353714542,1739995871094,-752.33,0.0001223,2]
[353714543,1739995871107,-815.95,0.0001223,2]
[353714544,1739995871118,-932.21,0.0001223,2]
[353714545,1739995871128,-626.91,0.0001223,2]
[353714546,1739995871140,-662.97,0.0001223,2]
[353714547,1739995871150,-787.68,0.0001223,2]
[353714548,1739995871160,-643.58,0.0001223,2]
[353714549,1739995871170,-1571.8,0.0001223,2]
[353714550,1739995871180,-737.13,0.0001223,2]
[353714551,1739995871193,-500.0,0.0001223,2]
[353714552,1739995871203,-740.58,0.0001223,2]
[353714553,1739995871214,-584.39,0.0001223,2]
[353714554,1739995871223,-715.97,0.0001223,2]
[353714555,1739995871232,-734.84,0.0001223,2]
[353714556,1739995871242,-802.39,0.0001223,2]
[353714557,1739995871253,-697.67,0.0001223,2]
[353714558,1739995871263,-756.21,0.0001223,2]
[353714559,1739995871273,-500.0,0.0001223,2]
[353714560,1739995871282,-500.0,0.0001223,2]
[353714561,1739995871292,-937.95,0.0001223,2]
[353714562,1739995871302,-716.59,0.0001223,2]
[353714563,1739995871312,-588.54,0.0001223,2]
[353714564,1739995871322,-389.555864,0.0001223,2]
[353714565,1739995871332,-1087.14,0.0001223,2]
[353714566,1739995871343,-615.01,0.0001223,2]
[353714567,1739995871352,-743.19,0.0001223,2]
[353714568,1739995871363,-1762.82,0.0001223,2]
[353714569,1739995871373,-1029.99,0.0001223,2]
[353714570,1739995871383,-963.52,0.0001223,2]
[353714571,1739995871393,-1039.67,0.0001223,2]
[353714572,1739995871402,-500.0,0.0001223,2]
[353714573,1739995871412,-500.0,0.0001223,2]
[353714574,1739995871422,-500.0,0.0001223,2]
[353714575,1739995871432,-1014.84,0.0001223,2]
[353714576,1739995871442,-898.51,0.0001223,2]
[353714577,1739995871452,-1434.81,0.0001223,2]
[353714578,1739995871461,-802.62,0.0001223,2]
[353714579,1739995871471,-1157.13,0.0001223,2]
[353714580,1739995871482,-1176.33,0.0001223,2]
[353714581,1739995871491,-1126.62,0.0001223,2]
[353714582,1739995871500,-588.95,0.0001223,2]
[353714583,1739995871510,-500.0,0.0001223,2]
[353714584,1739995871520,-865.56,0.0001223,2]
[353714585,1739995871529,-1010.38,0.0001223,2]
[353714586,1739995871539,-500.0,0.0001223,2]
[353714587,1739995871548,-692.91,0.0001223,2]
[353714588,1739995871557,-473.31060072,0.0001223,2]
[353714589,1739995871567,-500.0,0.0001223,2]
[353714590,1739995871576,-704.62,0.0001223,2]
[353714591,1739995871588,-500.0,0.0001223,2]
[353714592,1739995871597,-1732.65,0.0001223,2]
[353714593,1739995871606,-920.03,0.0001223,2]
[353714594,1739995871616,-581.74,0.0001223,2]
[353714595,1739995871626,-601.71,0.0001223,2]
[353714596,1739995871636,-588.31,0.0001223,2]
[353714597,1739995871646,-597.73,0.0001223,2]
[353714598,1739995871655,-553.99,0.0001223,2]
[353714599,1739995871666,-500.0,0.0001223,2]
[353714600,1739995871676,-535.64,0.0001223,2]
[353714601,1739995871733,-504.05,0.0001223,2]
[353714602,1739995871744,-593.74,0.00012249,2]
[353714603,1739995871753,-542.9,0.00012249,2]
[353714604,1739995871763,-571.96,0.00012249,2]
[353714605,1739995871771,-941.65,0.00012249,2]
[353714606,1739995871781,-2238.61,0.00012249,2]
[353714607,1739995871790,-565.65,0.00012249,2]
[353714608,1739995871799,-677.86,0.00012249,2]
[353714609,1739995871808,-500.0,0.00012249,2]
[353714610,1739995871817,-705.04,0.00012249,2]
[353714611,1739995871827,-500.0,0.00012249,2]
[353714612,1739995871836,-636.09,0.00012249,2]
[353714613,1739995871845,-771.98,0.00012249,2]
[353714614,1739995871855,-723.14,0.00012249,2]
[353714615,1739995871864,-662.74,0.00012249,2]
[353714616,1739995871873,-1719.04,0.00012249,2]
[353714617,1739995871883,-500.0,0.00012249,2]
[353714618,1739995871892,-5004.98375569,0.00012252,2]
[353714619,1739995871901,-150.0,0.00012301,2]
[353714620,1739995871910,-150.0,0.00012301,2]
[353714621,1739995871922,-150.0,0.00012301,2]
[353714622,1739995871931,-194.49192879,0.00012301,2]
[353714623,1739995871940,-500.0,0.00012312,2]
[353714624,1739995871950,-500.0,0.00012312,2]
[353714625,1739995871959,-533.42,0.00012312,2]
[353714626,1739995871969,-500.0,0.00012312,2]
[353714627,1739995871979,-500.0,0.00012312,2]
[353714628,1739995871988,-500.0,0.00012312,2]
[353714629,1739995871997,-500.0,0.00012312,2]
[353714630,1739995872006,-505.76,0.00012312,2]
[353714631,1739995872016,-500.0,0.00012312,2]
[353714632,1739995872025,-500.0,0.00012312,2]
[353714633,1739995872035,-230.97239397,0.00012312,2]
[353714634,1739995872044,-500.0,0.00012312,2]
[353714635,1739995872053,-500.0,0.00012312,2]
[353714636,1739995872063,-500.0,0.00012312,2]
[353714637,1739995872072,-587.31,0.00012312,2]
[353714638,1739995872082,-310.77100378,0.00012312,2]
[353714639,1739995872093,-585.71,0.00012312,2]
[353714640,1739995872103,-524.38,0.00012312,2]
[353714641,1739995872112,-500.0,0.00012312,2]
[353714642,1739995872122,-591.5131167,0.00012312,2]
[353714643,1739995872133,-500.0,0.00012312,2]
[353714644,1739995872142,-314.97662,0.00012312,2]
[353714645,1739995872153,-500.0,0.00012312,2]
[353714646,1739995872163,-500.0,0.00012312,2]
[353714647,1739995872173,-522.39,0.00012312,2]
[353714648,1739995872183,-500.0,0.00012312,2]
[353714649,1739995872194,-230.212476,0.00012312,2]
[353714650,1739995872204,-500.0,0.00012312,2]
[353714651,1739995872215,-500.0,0.00012312,2]
[353714652,1739995872225,-714.19,0.00012312,2]
[353714653,1739995872236,-500.0,0.00012312,2]
[353714654,1739995872247,-500.0,0.00012312,2]
[353714655,1739995872257,-500.0,0.00012312,2]
[353714656,1739995872267,-500.0,0.00012312,2]
[353714657,1739995872277,-500.0,0.00012312,2]
[353714658,1739995872287,-500.0,0.00012312,2]
[353714659,1739995872297,-500.0,0.00012312,2]
[353714660,1739995872307,-563.2,0.00012312,2]
[353714661,1739995872317,-500.0,0.00012312,2]
[353714662,1739995872326,-500.0,0.00012312,2]
[353714663,1739995872335,-500.0,0.00012312,2]
[353714664,1739995872344,-500.0,0.00012312,2]
[353714665,1739995872354,-500.0,0.00012312,2]
[353714666,1739995872363,-500.0,0.00012312,2]
[353714667,1739995872373,-1172.61,0.00012312,2]
[353714668,1739995872382,-500.0,0.00012312,2]
[353714669,1739995872392,-879.09,0.00012312,2]
[353714670,1739995872401,-737.96,0.00012312,2]
[353714671,1739995872410,-500.0,0.00012312,2]
[353714672,1739995872419,-962.32,0.00012312,2]
[353714673,1739995872428,-538.45,0.00012312,2]
[353714674,1739995872437,-509.59,0.00012312,2]
[353714675,1739995872448,-500.0,0.00012312,2]
[353714676,1739995872458,-546.67,0.00012312,2]
[353714677,1739995872467,-840.65,0.00012312,2]
[353714678,1739995872476,-500.0,0.00012312,2]
[353714679,1739995872486,-1437.42,0.00012312,2]
[353714680,1739995872495,-1356.54,0.00012312,2]
[353714681,1739995872504,-500.0,0.00012312,2]
[353714682,1739995872514,-785.45,0.00012312,2]
[353714683,1739995872523,-1209.73,0.00012312,2]
[353714684,1739995872533,-690.95,0.00012312,2]
[353714685,1739995872542,-1489.16,0.00012312,2]
[353714686,1739995872551,-807.67,0.00012312,2]
[353714687,1739995872560,-1423.58,0.00012312,2]
[353714688,1739995872569,-843.14,0.00012312,2]
[353714689,1739995872579,-677.57,0.00012312,2]
[353714690,1739995872588,-945.16,0.00012312,2]
[353714691,1739995872596,-3452.77,0.00012312,2]
[353714692,1739995872606,-752.33,0.00012312,2]
[353714693,1739995872615,-815.95,0.00012312,2]
[353714694,1739995872624,-932.21,0.00012312,2]
[353714695,1739995872633,-626.91,0.00012312,2]
[353714696,1739995872642,-662.97,0.00012312,2]
[353714697,1739995872651,-787.68,0.00012312,2]
[353714698,1739995872661,-643.58,0.00012312,2]
[353714699,1739995872672,-1571.8,0.00012312,2]
[353714700,1739995872682,-737.13,0.00012312,2]
[353714701,1739995872691,-500.0,0.00012312,2]
[353714702,1739995872702,-740.58,0.00012312,2]
[353714703,1739995872711,-584.39,0.00012312,2]
[353714704,1739995872721,-715.97,0.00012312,2]
[353714705,1739995872731,-734.84,0.00012312,2]
[353714706,1739995872741,-802.39,0.00012312,2]
[353714707,1739995872751,-697.67,0.00012312,2]
[353714708,1739995872761,-756.21,0.00012312,2]
[353714709,1739995872771,-500.0,0.00012312,2]
[353714710,1739995872781,-637.18727302,0.00012312,2]
[353714711,1739995872790,-937.95,0.00012312,2]
[353714712,1739995872800,-716.59,0.00012312,2]
[353714713,1739995872810,-588.54,0.00012312,2]
[353714714,1739995872819,-1087.14,0.00012312,2]
[353714715,1739995872829,-615.01,0.00012312,2]
[353714716,1739995872839,-743.19,0.00012312,2]
[353714717,1739995872848,-1762.82,0.00012312,2]
[353714718,1739995872859,-1029.99,0.00012312,2]
[353714719,1739995872868,-963.52,0.00012312,2]
[353714720,1739995872877,-1039.67,0.00012312,2]
[353714721,1739995872887,-500.0,0.00012312,2]
[353714722,1739995872896,-500.0,0.00012312,2]
[353714723,1739995872905,-238.31542347,0.00012312,2]
[353714724,1739995872913,-1014.84,0.00012312,2]
[353714725,1739995872922,-898.51,0.00012312,2]
[353714726,1739995872932,-1434.81,0.00012312,2]
[353714727,1739995872941,-802.62,0.00012312,2]
[353714728,1739995872950,-1157.13,0.00012312,2]
[353714729,1739995872960,-1176.33,0.00012312,2]
[353714730,1739995872969,-1126.62,0.00012312,2]
[353714731,1739995872978,-588.95,0.00012312,2]
[353714732,1739995872987,-500.0,0.00012312,2]
[353714733,1739995872995,-865.56,0.00012312,2]
[353714734,1739995873004,-1010.38,0.00012312,2]
[353714735,1739995873013,-500.0,0.00012312,2]
[353714736,1739995873022,-692.91,0.00012312,2]
[353714737,1739995873031,-500.0,0.00012312,2]
[353714738,1739995873040,-704.62,0.00012312,2]
[353714739,1739995873050,-500.0,0.00012312,2]
[353714740,1739995873060,-1732.65,0.00012312,2]
[353714741,1739995873069,-920.03,0.00012312,2]
[353714742,1739995873079,-581.74,0.00012312,2]
[353714743,1739995873089,-601.71,0.00012312,2]
[353714744,1739995873102,-588.31,0.00012312,2]
[353714745,1739995873112,-597.73,0.00012312,2]
[353714746,1739995873122,-553.99,0.00012312,2]
[353714747,1739995873132,-500.0,0.00012312,2]
[353714748,1739995873143,-535.64,0.00012312,2]
[353714749,1739995873154,-504.05,0.00012312,2]
[353714750,1739995873164,-5500.0,0.00012329,2]
[353714751,1739995873174,-151.0,0.00012329,2]
[353714752,1739995873183,-151.0,0.00012329,2]
[353714753,1739995873193,-151.0,0.00012329,2]
[353714754,1739995873203,-163.772472,0.00012329,2]
[353714755,1739995873212,-151.098718,0.00012329,2]
[353714756,1739995873222,-151.0,0.00012329,2]
[353714757,1739995873231,-192.289704,0.00012329,2]
[353714758,1739995873241,-151.0,0.00012329,2]
[353714759,1739995873251,-151.0,0.00012329,2]
[353714760,1739995873261,-151.0,0.00012329,2]
[353714761,1739995873271,-151.0,0.00012329,2]
[353714762,1739995873282,-151.0,0.00012329,2]
[353714763,1739995873293,-151.0,0.00012329,2]
[353714764,1739995873304,-151.0,0.00012329,2]
[353714765,1739995873314,-151.0,0.00012329,2]
[353714766,1739995873325,-151.0,0.00012329,2]
[353714767,1739995873335,-151.0,0.00012329,2]
[353714768,1739995873345,-151.0,0.00012329,2]
[353714769,1739995873355,-151.0,0.00012329,2]
[353714770,1739995873365,-151.0,0.00012329,2]
[353714771,1739995873374,-151.0,0.00012329,2]
[353714772,1739995873384,-151.0,0.00012329,2]
[353714773,1739995873393,-151.0,0.00012329,2]
[353714774,1739995873403,-151.0,0.00012329,2]
[353714775,1739995873412,-151.0,0.00012329,2]
[353714776,1739995873422,-181.317275,0.00012329,2]
[353714777,1739995873432,-151.0,0.00012329,2]
[353714778,1739995873442,-151.0,0.00012329,2]
[353714779,1739995873453,-151.0,0.00012329,2]
[353714780,1739995873463,-151.0,0.00012329,2]
[353714781,1739995873473,-151.0,0.00012329,2]
[353714782,1739995873482,-151.0,0.00012329,2]
[353714783,1739995873492,-151.0,0.00012329,2]
[353714784,1739995873503,-151.0,0.00012329,2]
[353714785,1739995873513,-151.0,0.00012329,2]
[353714786,1739995873524,-151.0,0.00012329,2]
[353714787,1739995873536,-151.0,0.00012329,2]
[353714788,1739995873548,-151.0,0.00012329,2]
[353714789,1739995873559,-228.258724,0.00012329,2]
[353714790,1739995873570,-151.0,0.00012329,2]
[353714791,1739995873580,-151.0,0.00012329,2]
[353714792,1739995873591,-151.0,0.00012329,2]
[353714793,1739995873601,-151.0,0.00012329,2]
[353714794,1739995873611,-151.0,0.00012329,2]
[353714795,1739995873622,-151.0,0.00012329,2]
[353714796,1739995873632,-151.306856,0.00012329,2]
[353714797,1739995873641,-151.0,0.00012329,2]
[353714798,1739995873651,-151.0,0.00012329,2]
[353714799,1739995873661,-151.0,0.00012329,2]
[353714800,1739995873673,-151.0,0.00012329,2]
[353714801,1739995873683,-151.0,0.00012329,2]
[353714802,1739995873693,-265.97573,0.00012329,2]
[353714803,1739995873703,-713.475265,0.00012329,2]
[353714804,1739995873713,-713.475265,0.00012329,2]
[353714805,1739995873723,-713.475265,0.00012329,2]
[353714806,1739995873734,-713.475265,0.00012329,2]
[353714807,1739995873743,-713.475265,0.00012329,2]
[353714808,1739995873753,-713.475265,0.00012329,2]
[353714809,1739995873764,-713.475265,0.00012329,2]
[353714810,1739995873775,-713.475265,0.00012329,2]
[353714811,1739995873786,-713.475265,0.00012329,2]
[353714812,1739995873798,-713.475265,0.00012329,2]
[353714813,1739995873808,-713.475265,0.00012329,2]
[353714814,1739995873818,-713.475265,0.00012329,2]
[353714815,1739995873828,-713.475265,0.00012329,2]
[353714816,1739995873838,-713.475265,0.00012329,2]
[353714817,1739995873849,-151.0,0.00012329,2]
[353714818,1739995873859,-151.0,0.00012329,2]
[353714819,1739995873869,-151.0,0.00012329,2]
[353714820,1739995873878,-151.0,0.00012329,2]
[353714821,1739995873889,-156.720506,0.00012329,2]
[353714822,1739995873899,-151.0,0.00012329,2]
[353714823,1739995873908,-151.0,0.00012329,2]
[353714824,1739995873920,-151.0,0.00012329,2]
[353714825,1739995873930,-151.0,0.00012329,2]
[353714826,1739995873940,-151.0,0.00012329,2]
[353714827,1739995873951,-151.0,0.00012329,2]
[353714828,1739995873963,-151.0,0.00012329,2]
[353714829,1739995873973,-151.0,0.00012329,2]
[353714830,1739995873983,-151.0,0.00012329,2]
[353714831,1739995873993,-151.0,0.00012329,2]
[353714832,1739995874003,-151.0,0.00012329,2]
[353714833,1739995874012,-151.0,0.00012329,2]
[353714834,1739995874022,-151.0,0.00012329,2]
[353714835,1739995874031,-151.0,0.00012329,2]
[353714836,1739995874041,-151.0,0.00012329,2]
[353714837,1739995874051,-151.0,0.00012329,2]
[353714838,1739995874061,-151.0,0.00012329,2]
[353714839,1739995874070,-151.0,0.00012329,2]
[353714840,1739995874081,-151.0,0.00012329,2]
[353714841,1739995874092,-151.0,0.00012329,2]
[353714842,1739995874103,-151.0,0.00012329,2]
[353714843,1739995874113,-151.0,0.00012329,2]
[353714844,1739995874123,-151.0,0.00012329,2]
[353714845,1739995874134,-593.74,0.00012331,2]
[353714846,1739995874144,-542.9,0.00012331,2]
[353714847,1739995874155,-571.96,0.00012331,2]
[353714848,1739995874166,-941.65,0.00012331,2]
[353714849,1739995874175,-2238.61,0.00012331,2]
[353714850,1739995874186,-565.65,0.00012331,2]
[353714851,1739995874198,-677.86,0.00012331,2]
[353714852,1739995874209,-500.0,0.00012331,2]
[353714853,1739995874219,-705.04,0.00012331,2]
[353714854,1739995874229,-500.0,0.00012331,2]
[353714855,1739995874239,-636.09,0.00012331,2]
[353714856,1739995874250,-771.98,0.00012331,2]
[353714857,1739995874260,-723.14,0.00012331,2]
[353714858,1739995874270,-662.74,0.00012331,2]
[353714859,1739995874281,-1719.04,0.00012331,2]
[353714860,1739995874292,-500.0,0.00012331,2]
[353714861,1739995874302,-204.0,0.0001237,2]
[353714862,1739995874313,-215.0,0.0001237,2]
[353714863,1739995874323,-500.0,0.00012394,2]
[353714864,1739995874333,-605.25884132,0.00012394,2]
[353714865,1739995874344,-533.42,0.00012394,2]
[353714866,1739995874354,-500.0,0.00012394,2]
[353714867,1739995874365,-500.0,0.00012394,2]
[353714868,1739995874376,-500.0,0.00012394,2]
[353714869,1739995874387,-500.0,0.00012394,2]
[353714870,1739995874398,-505.76,0.00012394,2]
[353714871,1739995874409,-500.0,0.00012394,2]
[353714872,1739995874420,-500.0,0.00012394,2]
[353714873,1739995874432,-500.0,0.00012394,2]
[353714874,1739995874444,-500.0,0.00012394,2]
[353714875,1739995874456,-500.0,0.00012394,2]
[353714876,1739995874468,-587.31,0.00012394,2]
[353714877,1739995874478,-585.71,0.00012394,2]
[353714878,1739995874488,-524.38,0.00012394,2]
[353714879,1739995874499,-500.0,0.00012394,2]
[353714880,1739995874509,-500.0,0.00012394,2]
[353714881,1739995874519,-314.97662,0.00012394,2]
[353714882,1739995874529,-288.88025511,0.00012394,2]
[353714883,1739995874539,-500.0,0.00012394,2]
[353714884,1739995874550,-522.39,0.00012394,2]
[353714885,1739995874559,-500.0,0.00012394,2]
[353714886,1739995874569,-230.212476,0.00012394,2]
[353714887,1739995874578,-157.423366,0.00012394,2]
[353714888,1739995874587,-500.0,0.00012394,2]
[353714889,1739995874595,-500.0,0.00012394,2]
[353714890,1739995874605,-714.19,0.00012394,2]
[353714891,1739995874615,-500.0,0.00012394,2]
[353714892,1739995874625,-500.0,0.00012394,2]
[353714893,1739995874634,-466.79638848,0.00012394,2]
[353714894,1739995874643,-500.0,0.00012394,2]
[353714895,1739995874653,-500.0,0.00012394,2]
[353714896,1739995874662,-500.0,0.00012394,2]
[353714897,1739995874672,-500.0,0.00012394,2]
[353714898,1739995874681,-563.2,0.00012394,2]
[353714899,1739995874691,-500.0,0.00012394,2]
[353714900,1739995874702,-500.0,0.00012394,2]
[353714901,1739995874712,-500.0,0.00012394,2]
[353714902,1739995874722,-500.0,0.00012394,2]
[353714903,1739995874731,-500.0,0.00012394,2]
[353714904,1739995874741,-500.0,0.00012394,2]
[353714905,1739995874751,-1172.61,0.00012394,2]
[353714906,1739995874760,-500.0,0.00012394,2]
[353714907,1739995874770,-879.09,0.00012394,2]
[353714908,1739995874779,-737.96,0.00012394,2]
[353714909,1739995874789,-500.0,0.00012394,2]
[353714910,1739995874798,-962.32,0.00012394,2]
[353714911,1739995874807,-538.45,0.00012394,2]
[353714912,1739995874818,-509.59,0.00012394,2]
[353714913,1739995874828,-500.0,0.00012394,2]
[353714914,1739995874837,-546.67,0.00012394,2]
[353714915,1739995874847,-840.65,0.00012394,2]
[353714916,1739995874857,-500.0,0.00012394,2]
[353714917,1739995874866,-1437.42,0.00012394,2]
[353714918,1739995874876,-1356.54,0.00012394,2]
[353714919,1739995874886,-500.0,0.00012394,2]
[353714920,1739995874895,-785.45,0.00012394,2]
[353714921,1739995874905,-1209.73,0.00012394,2]
[353714922,1739995874914,-690.95,0.00012394,2]
[353714923,1739995874924,-1489.16,0.00012394,2]
[353714924,1739995874934,-807.67,0.00012394,2]
[353714925,1739995874944,-1423.58,0.00012394,2]
[353714926,1739995874954,-843.14,0.00012394,2]
[353714927,1739995874964,-677.57,0.00012394,2]
[353714928,1739995874973,-945.16,0.00012394,2]
[353714929,1739995874982,-3452.77,0.00012394,2]
[353714930,1739995874992,-752.33,0.00012394,2]
[353714931,1739995875002,-815.95,0.00012394,2]
[353714932,1739995875011,-932.21,0.00012394,2]
[353714933,1739995875021,-626.91,0.00012394,2]
[353714934,1739995875030,-662.97,0.00012394,2]
[353714935,1739995875039,-787.68,0.00012394,2]
[353714936,1739995875048,-643.58,0.00012394,2]
[353714937,1739995875058,-1571.8,0.00012394,2]
[353714938,1739995875067,-737.13,0.00012394,2]
[353714939,1739995875076,-500.0,0.00012394,2]
[353714940,1739995875087,-740.58,0.00012394,2]
[353714941,1739995875100,-584.39,0.00012394,2]
[353714942,1739995875110,-715.97,0.00012394,2]
[353714943,1739995875119,-734.84,0.00012394,2]
[353714944,1739995875130,-802.39,0.00012394,2]
[353714945,1739995875140,-697.67,0.00012394,2]
[353714946,1739995875150,-756.21,0.00012394,2]
[353714947,1739995875160,-500.0,0.00012394,2]
[353714948,1739995875169,-937.95,0.00012394,2]
[353714949,1739995875179,-716.59,0.00012394,2]
[353714950,1739995875189,-588.54,0.00012394,2]
[353714951,1739995875201,-1087.14,0.00012394,2]
[353714952,1739995875211,-615.01,0.00012394,2]
[353714953,1739995875221,-743.19,0.00012394,2]
[353714954,1739995875231,-1762.82,0.00012394,2]
[353714955,1739995875242,-1029.99,0.00012394,2]
[353714956,1739995875252,-963.52,0.00012394,2]
[353714957,1739995875262,-1039.67,0.00012394,2]
[353714958,1739995875272,-626.36660245,0.00012394,2]
[353714959,1739995875282,-500.0,0.00012394,2]
[353714960,1739995875292,-1014.84,0.00012394,2]
[353714961,1739995875302,-898.51,0.00012394,2]
[353714962,1739995875312,-1434.81,0.00012394,2]
[353714963,1739995875322,-802.62,0.00012394,2]
[353714964,1739995875332,-1157.13,0.00012394,2]
[353714965,1739995875341,-1176.33,0.00012394,2]
[353714966,1739995875351,-1126.62,0.00012394,2]
[353714967,1739995875361,-588.95,0.00012394,2]
[353714968,1739995875371,-500.0,0.00012394,2]
[353714969,1739995875381,-865.56,0.00012394,2]
[353714970,1739995875390,-1010.38,0.00012394,2]
[353714971,1739995875400,-500.0,0.00012394,2]
[353714972,1739995875409,-692.91,0.00012394,2]
[353714973,1739995875419,-500.0,0.00012394,2]
[353714974,1739995875428,-704.62,0.00012394,2]
[353714975,1739995875438,-500.0,0.00012394,2]
[353714976,1739995875449,-1732.65,0.00012394,2]
[353714977,1739995875459,-920.03,0.00012394,2]
[353714978,1739995875469,-581.74,0.00012394,2]
[353714979,1739995875479,-601.71,0.00012394,2]
[353714980,1739995875490,-588.31,0.00012394,2]
[353714981,1739995875500,-597.73,0.00012394,2]
[353714982,1739995875510,-553.99,0.00012394,2]
[353714983,1739995875519,-500.0,0.00012394,2]
[353714984,1739995875529,-535.64,0.00012394,2]
[353714985,1739995875539,-504.05,0.00012394,2]
[353714986,1739995875549,-1518.06694232,0.000124,2]
[353714987,1739995875559,-7711.48750822,0.000124,2]
[353714988,1739995875568,-563058.92055982,0.00012411,2]
[353714989,1739995875577,-151.0,0.00012411,2]
[353714990,1739995875587,-151.0,0.00012411,2]
[353714991,1739995875596,-713.475265,0.00012411,2]
[353714992,1739995875606,-713.475265,0.00012411,2]
[353714993,1739995875615,-713.475265,0.00012411,2]
[353714994,1739995875625,-713.475265,0.00012411,2]
[353714995,1739995875635,-151.0,0.00012411,2]
[353714996,1739995875644,-593.74,0.00012413,2]
[353714997,1739995875654,-542.9,0.00012413,2]
[353714998,1739995875663,-571.96,0.00012413,2]
[353714999,1739995875673,-941.65,0.00012413,2]
[353715000,1739995875683,-2238.61,0.00012413,2]
[353715001,1739995875692,-565.65,0.00012413,2]
[353715002,1739995875703,-677.86,0.00012413,2]
[353715003,1739995875713,-500.0,0.00012413,2]
[353715004,1739995875723,-705.04,0.00012413,2]
[353715005,1739995875732,-500.0,0.00012413,2]
[353715006,1739995875742,-636.09,0.00012413,2]
[353715007,1739995875752,-771.98,0.00012413,2]
[353715008,1739995875762,-723.14,0.00012413,2]
[353715009,1739995875772,-662.74,0.00012413,2]
[353715010,1739995875783,-1719.04,0.00012413,2]
[353715011,1739995875794,-500.0,0.00012413,2]
[353715012,1739995875804,-638.0,0.0001243,2]
[353715013,1739995875814,-150.0,0.0001243,2]
[353715014,1739995875824,-569.0,0.0001243,2]
[353715015,1739995875834,-200.82617663,0.00012435,2]
[353715016,1739995875844,-500.0,0.00012435,2]
[353715017,1739995875855,-150.0,0.00012435,2]
[353715018,1739995875866,-500.0,0.00012435,2]
[353715019,1739995875876,-500.0,0.00012435,2]
[353715020,1739995875886,-250.11233461,0.00012435,2]
[353715021,1739995875897,-500.0,0.00012435,2]
[353715022,1739995875907,-150.0,0.00012435,2]